Cogmind - Beta 13 @@@ ROGUE MODE // 2024.04.15 @ 11:59:02 Player: BagelsSniperWolf Result: Destroyed by G-47 Trooper with Particle Gun Performance ------------- Evolutions (2) 1000 Regions Visited (3) 600 Robots Destroyed (18) 90 Value Destroyed (642) 642 Prototype IDs (2) 40 Alien Tech Used (0) 0 Bonus (0) 0 TOTAL SCORE: 2372 Bonus ------- None Cogmind --------- Core Integrity 0/550 Matter 295/300 Energy 160/160 System Corruption 0% Temperature Warm (167) Movement Treading (160) Location -8/Materials Parts ------- > --- POWER (2) -------- Light Nuclear Core > --- PROPULSION (3) --- Improved Treads Improved Treads Compact Wheel > --- UTILITY (4) ------ Large Storage Unit Targeting Computer Advanced Targeting Computer > --- WEAPON (2) ------- Particle Gun > --- INVENTORY (15) --- Combat Airjet Peak State ------------ > --- POWER ------------ Light Nuclear Core > --- PROPULSION ------- Improved Treads Improved Treads Combat Airjet > --- UTILITY ---------- Large Storage Unit Subdweller Optics Targeting Computer Advanced Targeting Computer > --- WEAPON ----------- Particle Gun Subdweller Laser > --- INVENTORY -------- (None) [Rating: 23] Favorites ----------- Power Light Ion Engine Engine Light Ion Engine Power Core Light Nuclear Core Propulsion Light Treads Treads Light Treads Wheel Wheel Hover Unit Combat Airjet Utility Small Storage Unit Device Structural Scanner Storage Small Storage Unit Processor Targeting Computer Weapon Medium Laser Energy Gun Medium Laser Energy Cannon Ion Cannon Ballistic Gun Assault Rifle Ballistic Cannon Light Cannon Build | -11 -10 -10 -8 ------- Run | Yrd Mat Sub Mat Slots Evolved 4 | . . . 4 Power 1 | . . . 1 Propulsion 1 | . . . 1 Utility 2 | . . . 2 Weapon . | . . . . Parts Attached 48 | 12 3 11 22 Power 10 | 2 . 2 6 Engine 6 | 2 . 2 2 Core 4 | . . . 4 Reactor . | . . . . Propulsion 15 | 6 . 4 5 Treads 4 | 2 . . 2 Leg . | . . . . Wheel 8 | 2 . 4 2 Hover 3 | 2 . . 1 Flight . | . . . . Utility 10 | 2 2 1 5 Device 5 | 1 1 . 3 Storage 2 | 1 1 . . Processor 3 | . . 1 2 Hackware . | . . . . Protection . | . . . . Artifact . | . . . . Weapon 13 | 2 1 4 6 Energy Gun 5 | 1 . . 4 Energy Cannon 2 | . . . 2 Ballistic Gun 4 | 1 . 3 . Ballistic Cannon 2 | . 1 1 . Launcher . | . . . . Special Weapon . | . . . . Impact Weapon . | . . . . Slashing Weapon . | . . . . Piercing Weapon . | . . . . Special Melee Weapon . | . . . . Unidentified Prototypes . | . . . . Parts Lost 21 | 1 . 5 15 Power 5 | . . 1 4 Propulsion 5 | . . 2 3 Utility 5 | 1 . 1 3 Weapon 6 | . . 1 5 Highest Loss Streak 6 | 1 . 4 6 To Critical Strikes . | . . . . Average Slot Usage (%) 89 | . 99 97 74 Engine 10 | . 14 14 4 Core 2 | . . . 7 Wheel 20 | . 28 26 9 Device 10 | . 13 2 11 Storage 12 | . 14 14 9 Processor 7 | . . 11 13 Energy Gun 10 | . 14 3 9 Energy Cannon 1 | . . . 2 Ballistic Gun 4 | . 1 17 2 Ballistic Cannon 7 | . 12 7 1 Naked Turns . | . . . . Heaviest Build 39 | 14 31 31 39 Greatest Support 46 | 40 20 36 46 Greatest Overweight (x) 12 | 4 1 2 12 Average Overweight (x) . | . . . 2 Largest Inventory Capacity 15 | 8 15 15 15 Average Capacity 10 | 7 13 15 15 Most Carried 9 | 7 6 9 8 Average Carried 4 | 3 5 5 4 Final Capacity 15 | 8 15 15 15 Final Carried 7 | 5 5 7 1 Class Distribution -------------------- 77% | Mutant 15% | Scavenger-Mutant 6% | Infiltrator-Mutant Dominant Class ---------------- Mutant | -10/Materials Scavenger-Mutant | -10/Subcaves Scavenger-Mutant | -8/Materials Resources | -11 -10 -10 -8 ----------- Run | Yrd Mat Sub Mat Matter Collected 989 | 354 106 241 288 Remotely . | . . . . Salvage Created 775 | 64 108 132 471 Parts 32 | . 12 3 17 Haulers Intercepted . | . . . . Recyclers Shooed . | . . . . Parts Field Recycled . | . . . . Retrieved Matter . | . . . . Parts Self-Destructed 2 | . . 2 . Prevented . | . . . . Kills | -11 -10 -10 -8 ------- Run | Yrd Mat Sub Mat Combat Hostiles Destroyed 21 | 5 5 2 9 Guns 14 | 5 2 2 5 Cannons 6 | . 3 . 3 Classes Destroyed 8 | 1 3 1 3 Watcher 2 | . 1 . 1 Swarmer 3 | . 3 . . Grunt 8 | . 2 . 6 Brawler 1 | . . . 1 Sentry 1 | . . . 1 Specialist 1 | . . . 1 Subdweller 2 | . . 2 . Assembled 5 | 5 . . . Best Kill Streak 3 | 2 3 1 3 Combat Bots Only 3 | 2 3 1 3 Max Kills in Single Turn 1 | 1 1 1 1 Gunslinging . | . . . . Exploded . | . . . . Melee . | . . . . Uniques/NPCs Destroyed . | . . . . Combat | -11 -10 -10 -8 -------- Run | Yrd Mat Sub Mat Hostile Shots Fired 213 | 15 25 6 167 Missed 65 | 7 7 . 51 Damage Taken 2467 | 146 153 336 1832 Core 660 | . 42 53 565 Absorbed by Shields . | . . . . Core Remaining (%) 81 | 100 . 62 . Volleys Fired 110 | 18 14 25 53 Largest 2 | 2 2 2 2 Hottest 145 | 70 85 85 145 Shots Fired 193 | 33 28 49 83 Gun 148 | 33 14 35 66 Cannon 45 | . 14 14 17 Launcher . | . . . . Special . | . . . . Kinetic 91 | 18 14 40 19 Thermal 102 | 15 14 9 64 Explosive . | . . . . Electromagnetic . | . . . . Robot Hit Streak 25 | 4 4 23 25 Robot Miss Streak 3 | 2 3 1 2 Penetration Max . | . . . . Secondary Targets . | . . . . Shots Hit Robots 137 | 20 12 44 61 Core Hits 47 | 10 7 12 18 Critical Kills 1 | . . 1 . Critical Parts Destroyed . | . . . . Critical Strikes 10 | 1 2 6 1 Burn 4 | 1 . 3 . Destroy 1 | . . 1 . Blast 5 | . 2 2 1 Melee Attacks . | . . . . Impact . | . . . . Slashing . | . . . . Piercing . | . . . . Sneak Attacks . | . . . . Combat Hostiles . | . . . . Follow-up Attacks . | . . . . Damage Inflicted 2174 | 240 183 646 1105 Guns 1538 | 240 61 429 808 Cannons 636 | . 122 217 297 Explosions . | . . . . Melee . | . . . . Ramming . | . . . . Kinetic 1034 | 129 122 547 236 Thermal 1140 | 111 61 99 869 Explosive . | . . . . Electromagnetic . | . . . . Impact . | . . . . Slashing . | . . . . Piercing . | . . . . Highest Corruption 1 | 1 1 1 . Average Corruption 1 | 1 1 1 . Corruption Purged . | . . . . Corruption Blocked . | . . . . Effects 15 | 4 6 5 . Message Errors 5 | 1 3 1 . Matter Fused 4 | . 2 2 . Heat Flow Errors 2 | 1 1 . . Energy Discharges 1 | 1 . . . Data Loss (major) 1 | . . 1 . Alerts 1 | 1 . . . Weapon Failures 1 | . . 1 . Overload Shots . | . . . . Overflow Damage . | . . . . Projectiles . | . . . . Explosions . | . . . . Melee . | . . . . Knockbacks 4 | . 1 3 . Impact . | . . . . Kinetic 4 | . 1 3 . Secondary . | . . . . Self-Inflicted Damage . | . . . . Shots . | . . . . Rammed . | . . . . Targets Rammed . | . . . . Kicked . | . . . . Crushed . | . . . . Highest Temperature 355 | 192 261 1 355 Average Temperature 115 | 47 110 1 138 Received Heat Transfer 1053 | . 24 48 981 Effects 5 | . . . 5 Energy Bleed 1 | . . . 1 Interference 3 | . . . 3 Matter Decay 1 | . . . 1 Siege Activations . | . . . . Robots Corrupted . | . . . . Combat Hostiles . | . . . . Parts Fried . | . . . . Impact Corruptions . | . . . . Robots Melted 1 | . . . 1 Combat Hostiles 1 | . . . 1 Parts Melted 3 | . . 1 2 Heat Transferred 2778 | 407 185 518 1668 Parts Sabotaged . | . . . . Parts Stolen . | . . . . Parts Stripped . | . . . . Power Chain Reactions . | . . . . Alert | -11 -10 -10 -8 ------- Run | Yrd Mat Sub Mat Peak Influence 187 | 30 187 . 157 Initial 9 | . 9 . . Average 25 | 2 56 . 63 Maximum Alert Level . | . . . . Low Security (%) 100 | 100 100 . 100 Level 1 . | . . . . Level 2 . | . . . . Level 3 . | . . . . Level 4 . | . . . . Level 5 . | . . . . High Security . | . . . . Max Security . | . . . . Squads Dispatched 2 | . 1 . 1 Investigation . | . . . . Extermination . | . . . . Reinforcement 2 | . 1 . 1 Assault . | . . . . Garrison . | . . . . Intercept . | . . . . Searches Triggered . | . . . . Construction Impeded . | . . . . Haulers Reinforced . | . . . . Active Scanning Responses . | . . . . Cargo Convoy Interrupts . | . . . . Stealth | -11 -10 -10 -8 --------- Run | Yrd Mat Sub Mat Distress Signals 2 | . 1 . 1 Communications Jammed . | . . . . Distress Signals . | . . . . Times Spotted 47 | 5 10 11 21 Peak Tracking Total 7 | 1 4 7 4 Tactical Retreats 6 | . 1 . 5 Traps | -11 -10 -10 -8 ------- Run | Yrd Mat Sub Mat Traps Triggered 2 | . . 2 . Indirectly . | . . . . Trap Hack Attempts . | . . . . Triggered . | . . . . Disarmed . | . . . . Reprogrammed . | . . . . Reused . | . . . . Traps Extracted . | . . . . Installed . | . . . . Triggered . | . . . . Machines | -11 -10 -10 -8 ---------- Run | Yrd Mat Sub Mat Machines Disabled . | . . . . Max in Single Turn . | . . . . Machines Repaired . | . . . . Machines Dismantled . | . . . . Machines Sabotaged . | . . . . Overloaded Fab Kills . | . . . . Hacking | -11 -10 -10 -8 --------- Run | Yrd Mat Sub Mat Machines Accessed 3 | . 2 . 1 Terminals 3 | . 2 . 1 Fabricators . | . . . . Repair Stations . | . . . . Recycling Units . | . . . . Scanalyzers . | . . . . Garrison Access . | . . . . Total Hacks 13 | . 10 . 3 Successful 8 | . 6 . 2 Failed 5 | . 4 . 1 Catastrophic 1 | . 1 . . Database Lockouts . | . . . . Manual . | . . . . Terminals 13 | . 10 . 3 Fabricators . | . . . . Repair Stations . | . . . . Recycling Units . | . . . . Scanalyzers . | . . . . Garrison Access . | . . . . Terminal Hacks 8 | . 6 . 2 Record 4 | . 3 . 1 Prototype ID Bank 1 | . 1 . . Alert Level 2 | . 1 . 1 Locate Traps 1 | . 1 . . Fabricator Hacks . | . . . . Repair Station Hacks . | . . . . Recycling Unit Hacks . | . . . . Scanalyzer . | . . . . Garrison Access Hacks . | . . . . Unauthorized Hacks . | . . . . Terminals . | . . . . Fabricators . | . . . . Repair Stations . | . . . . Recycling Units . | . . . . Scanalyzers . | . . . . Garrison Access . | . . . . Data Cores Recovered . | . . . . Used . | . . . . Hacking Detections 2 | . 1 . 1 Full Trace Events 1 | . . . 1 Feedback Events . | . . . . Feedback Blocked . | . . . . Robot Schematics Acquired . | . . . . Robots Built . | . . . . Authchips . | . . . . Time . | . . . . Total Robot Build Rating . | . . . . Part Schematics Acquired . | . . . . Parts Built . | . . . . Authchips . | . . . . Time . | . . . . Total Part Build Rating . | . . . . Parts Repaired . | . . . . Time . | . . . . Parts Recycled . | . . . . Recycled Matter . | . . . . Retrieved Matter . | . . . . Retrieved Components . | . . . . Parts Scanalyzed . | . . . . Part Schematics Acquired . | . . . . Parts Damaged . | . . . . Bothacking | -11 -10 -10 -8 ------------ Run | Yrd Mat Sub Mat Used RIF Installer . | . . . . Robots Hacked . | . . . . Non-combat . | . . . . Combat . | . . . . Robot Hacks Applied . | . . . . Relay Couplers Released . | . . . . Fabnet Peak Effective % . | . . . . Robots Rewired . | . . . . Allies Hacked . | . . . . Hacks Repelled . | . . . . Allies | -11 -10 -10 -8 -------- Run | Yrd Mat Sub Mat Total Allies . | . . . . Largest Group . | . . . . Highest-Rated Group . | . . . . Highest-Rated Ally . | . . . . Total Orders . | . . . . Ally Attacks . | . . . . Total Damage . | . . . . Kills . | . . . . Allies Corrupted . | . . . . Allies Melted . | . . . . Intel | -11 -10 -10 -8 ------- Run | Yrd Mat Sub Mat Robot Analysis Total . | . . . . Derelict Logs Recovered . | . . . . Drone Launches . | . . . . Drone Recoveries . | . . . . Exploration | -11 -10 -10 -8 ------------- Run | Yrd Mat Sub Mat Turns Passed 4263 | 2301 799 398 765 Spaces Moved 1253 | 545 163 229 316 Core 39 | 17 . . 22 Treads 245 | 229 . . 16 Legs . | . . . . Wheels 665 | 4 163 229 269 Hover 304 | 295 . . 9 Flight . | . . . . Fastest Speed 50 | 50 80 95 96 Average Speed 118 | 114 85 103 152 Slowest Speed 650 | 250 95 110 650 Overloaded Moves . | . . . . Propulsion Burnouts . | . . . . Robots Hopped . | . . . . Cave-ins Triggered . | . . . . Exploration Rate (%) 33 | 61 30 16 25 Regions Visited 3 Branch Regions 1 Pre-discovered Areas . | . . . . Known Exits Taken . | . . . . Unknown Exits Taken 3 | 1 1 1 . Scrap Searched 3 | . . 3 . Spaces Dug . | . . . . Terrain Destroyed 1 | . . . 1 Melee . | . . . . Projectile 1 | . . . 1 AOE . | . . . . Terrain Rammed . | . . . . Walls Destroyed . | . . . . Machines Disabled . | . . . . Actions | -11 -10 -10 -8 --------- Run | Yrd Mat Sub Mat Total 3846 | 2189 795 341 521 Wait 2373 | 1592 611 60 110 Move 1250 | 544 162 228 316 Hop . | . . . . Pick Up 46 | 17 3 12 14 Fast Attach . | . . . . Attach 41 | 11 2 6 22 Detach 3 | 1 . . 2 Swap 7 | 1 1 5 . Drop 16 | 5 2 5 4 Fire 110 | 18 14 25 53 Melee . | . . . . Ram . | . . . . Kick . | . . . . Crush . | . . . . Escape Stasis . | . . . . Rewire . | . . . . Trap . | . . . . Miscellaneous . | . . . . Route ------- -11/Scrapyard -10/Materials (discovered 2 exits: [*Min] / [*Sub]) -10/Subcaves -8/Materials History --------- Turn | Location | Event 29 | -11/Scrapyard | Discovered new exit (range 16) 1801 | -11/Scrapyard | Assembled infested the area 2302 | -11/Scrapyard | Entered Materials 2320 | -10/Materials | Build established: Mutant 2461 | -10/Materials | Discovered new exit (range 12) 2475 | -10/Materials | Discovered new exit (range 9) 3101 | -10/Materials | Entered Subcaves 3102 | -10/Subcaves | Ambushed by Subdwellers from Twisted Machinery 3149 | -10/Subcaves | Ambushed by swarm of Subdwellers 3151 | -10/Subcaves | Ambushed by Subdwellers from Twisted Machinery 3194 | -10/Subcaves | Lost 4 parts (2n1u1w) 3425 | -10/Subcaves | Discovered new exit (range 11) 3499 | -10/Subcaves | Entered Materials 3499 | -8/Materials | Evolved 4 slots: Power x1, Propulsion x1, Utility x2 3542 | -8/Materials | Build established: Scavenger-Mutant 3706 | -8/Materials | Lost 4 parts (1p2n1w) 4107 | -8/Materials | Core integrity fell below 50% 4146 | -8/Materials | Core integrity fell below 20% 4166 | -8/Materials | Lost 6 parts (1p2u3w) 4264 | -8/Materials | Destroyed by G-47 Trooper with Particle Gun Last Messages --------------- R-06 Scavenger collects Tractor Beam. ECM Suite destroyed. R-06 Scavenger collects Aluminum Leg. G-47 Trooper destroyed. Acquired 35 matter. Acquired Lgt. Nuclear Core. Acquired Particle Gun. Acquired Imp. Treads. Acquired 40 matter. Acquired Com. Wheel. Acquired 10 matter. Sub. Optics destroyed. Overheating: System interference. Targeting Computer temporarily disabled. Adv. Targeting Computer temporarily disabled. Particle Gun temporarily disabled. G-47 Trooper destroyed. Acquired Lgt. Nuclear Core. Sub. Laser destroyed. Lgt. Nuclear Core destroyed. Map ----- +----------------------------------------------------+ | ?????????????????????????????????????????????????? | | ?????????????????????????????????????????????????? | | ?????????????????????????????????????????????????? | | ?????????????????????????????????????????????????? | | ?????????????????????????????????????????????????? | | ?????????????????????????????????????????????????? | | ?????????????????????????????????????????????????? | | ?????????????????????????????????????????????????? | | ?????????????????????????????????????????????????? | | ?????????????????????????????????????????????????? | | ?????????????????????????????????????????????????? | | ?????????????????????????????????????????????????? | | ?????????????????????????????????????????????????? | | ?????????????????????????????????????????????????? | | ?????????????????????????????????????????????????? | | ?????????????????????????????????????????????????? | | ?????????????????????????????????????????????????? | | ?????????????????????????????????????????????????? | | ??????????????????????########## ????????????????? | | ??????????????????????############???????????????? | | ???????????????????#??## ##??????????????? | | ???????????????????# ?## """ """ + ??????????????? | | ?????????????????### ### """ """ ##??????????????? | | ????? ##+####### # """ """ ##??????????????? | | ????? w # ##??????????????? | | ????? T %g @ ! ##??????????????? | | ????? r #%! != ##??????????????? | | ????? ##+####### #% = ###### ?????????? | | ?????????????????#######+############## ?????????? | | ??????????????????????##%##### # ?????????? | | ??????????????????????##=##### ##?????????? | | ??????????????????????##! + ##?????????? | | ??????????????????????######## ##?????????? | | ??????????????????????######## ##?????????? | | ????????????????????????????## ##?????????? | | ????????????????????????????## ##?????????? | | ????????????????????????????## ###????????? | | ????????????????????????????## % ############ | | ????????????????????????????######+############### | | ??????????????????????????####### % | | ??????????????????????????####### | | ???????????????????? | | ??????????????????????????##########+##### ##### # | | ?????????????????????????? # ! ##+#####+# | | ???????????????????????????????? # # | | ???????????????????????????????? # # | | ???????????????????????????????? # // # " """"" | | ???????????????????????????????? # /]] # """""""" | | ???????????????????????????????? # /]] # """ """ | | ???????????????????????????????? ########! | +----------------------------------------------------+ Best States ------------- Heat Dissipation 31 Energy Generation 25 Energy Capacity 300 Matter Stores 300 Matter Capacity 300 Sight Range 21 Terrain Scan Range 16 Terrain Scan Density 10 ECM Strength 1 Evasion (%) 49 Targeting Accuracy 13 Recoil Reduction 2 Item Schematics ----------------- None Robot Schematics ------------------ None Fabricated ------------ Nothing Alien Tech Used ----------------- None Achievements -------------- Curiosity Killed The Cat It's Just You Challenges ------------ None Game ------ Seed CommSuspensionFlakker Manual? 0 Play Time 00:45:48 Cumulative 2.8 hours Start 2024.04.15 @ 11:05:58 End 2024.04.15 @ 11:59:02 Sessions 1 Manual Loads 0 Difficulty Rogue Special Mode None Game No. 4 Rogue 4 Adventurer 0 Explorer 0 Win Type - Total 0 Types 0/0/0/0/0/0/0/0/0 Lore% 3 Gallery% 6 Achievement% 5 Wizard Run 0 Options --------- Layout 1 ASCII 0 Keyboard 0 Movement Mouse Keybinds 0 Fullscreen 1 Font 24/Terminus Map View 50x35 Zoom Use 0% Tactical HUD 0 Map Filters NONE Filters NONE Steam 1 RUN: 146a3ccf-a5e1-4e6e-aa3f-f192a0c52c58